Workbook

Sheet Representation
A1: Hourly Rate | B1: 75 | C1: Task | D1: Flat rate | E1: hours | F1: Per | G1: Quantity | H1: Cost | I1: * | J1: Collection Case | K1: Trust Fund | L1: Abatement per period | M1: OIC | N1: Appeal | P1: Collection Case | Q1: 1500 | S1: Task | T1: Time | U1: Cost | V1: Notes
C2: Form 433 | E2: 2 | F2: entity | G2: 1 | H2: =IF(Table1[[#This Row],[Flat rate]]="",$B$1*E2*Table1[[#This Row],[Quantity]],Table1[[#This Row],[Flat rate]]*Table1[[#This Row],[Quantity]]) -> 150 | J2: Y | K2: Y | M2: Y | N2: Y | P2: Trust Fund | Q2: 1200 | S2: Form 433
C3: Case Prep & research | E3: 6 | F3: case | G3: 1 | H3: =IF(Table1[[#This Row],[Flat rate]]="",$B$1*E3*Table1[[#This Row],[Quantity]],Table1[[#This Row],[Flat rate]]*Table1[[#This Row],[Quantity]]) -> 450 | J3: Y | K3: Y | M3: Y | N3: Y | P3: Abatement per period | Q3: 150 | S3: Case Prep & research
C4: Initial contact with IRS RO | E4: 1 | F4: case | G4: 1 | H4: =IF(Table1[[#This Row],[Flat rate]]="",$B$1*E4*Table1[[#This Row],[Quantity]],Table1[[#This Row],[Flat rate]]*Table1[[#This Row],[Quantity]]) -> 75 | J4: Y | K4: Y | L4: Y | P4: OIC | Q4: 1600 | S4: Initial contact with IRS RO
C5: 941 preparation | E5: 0.75 | F5: quarter | G5: 1 | H5: =IF(Table1[[#This Row],[Flat rate]]="",$B$1*E5*Table1[[#This Row],[Quantity]],Table1[[#This Row],[Flat rate]]*Table1[[#This Row],[Quantity]]) -> 56.25 | P5: Appeal | Q5: 1200 | S5: 941 preparation
C6: 940 preparation | E6: 0.75 | F6: year | G6: 1 | H6: =IF(Table1[[#This Row],[Flat rate]]="",$B$1*E6*Table1[[#This Row],[Quantity]],Table1[[#This Row],[Flat rate]]*Table1[[#This Row],[Quantity]]) -> 56.25 | S6: 940 preparation
C7: Financial analysis | E7: 3 | F7: case | G7: 1 | H7: =IF(Table1[[#This Row],[Flat rate]]="",$B$1*E7*Table1[[#This Row],[Quantity]],Table1[[#This Row],[Flat rate]]*Table1[[#This Row],[Quantity]]) -> 225 | J7: Y | M7: Y | N7: Y | S7: Financial analysis
C8: Bank record analysis | E8: 1 | F8: month | G8: 3 | H8: =IF(Table1[[#This Row],[Flat rate]]="",$B$1*E8*Table1[[#This Row],[Quantity]],Table1[[#This Row],[Flat rate]]*Table1[[#This Row],[Quantity]]) -> 225 | J8: Y | M8: Y | N8: Y | S8: Bank record analysis
C9: Compliance tracking | E9: 0.75 | F9: month | G9: 1 | H9: =IF(Table1[[#This Row],[Flat rate]]="",$B$1*E9*Table1[[#This Row],[Quantity]],Table1[[#This Row],[Flat rate]]*Table1[[#This Row],[Quantity]]) -> 56.25 | I9: *1 | J9: Y | S9: Compliance tracking
C10: Follow up phone calls with IRS | E10: 0.25 | F10: each | G10: 6 | H10: =IF(Table1[[#This Row],[Flat rate]]="",$B$1*E10*Table1[[#This Row],[Quantity]],Table1[[#This Row],[Flat rate]]*Table1[[#This Row],[Quantity]]) -> 112.5 | J10: Y | K10: Y | M10: Y | N10: Y | S10: Follow up phone calls with IRS
C11: Emails & correspondence | E11: 0.25 | F11: each | G11: 6 | H11: =IF(Table1[[#This Row],[Flat rate]]="",$B$1*E11*Table1[[#This Row],[Quantity]],Table1[[#This Row],[Flat rate]]*Table1[[#This Row],[Quantity]]) -> 112.5 | J11: Y | K11: Y | M11: Y | S11: Emails & correspondence
C12: Postage | D12: 9 | F12: each | G12: 4 | H12: =IF(Table1[[#This Row],[Flat rate]]="",$B$1*E12*Table1[[#This Row],[Quantity]],Table1[[#This Row],[Flat rate]]*Table1[[#This Row],[Quantity]]) -> 36 | J12: Y | K12: Y | P12: Initial cost is $1,500, from which we will draw expenses as incurred. This initial amount is the average and minimum total fee. There are no refunds of this initial payment. Once account drops below $500, you will be required to refill in increments of $250. Once case is resolved, any amount remaining in your account (above the initial fee) will be refunded. | S12: Postage
C13: Office Expenses | D13: 25 | G13: 1 | H13: =IF(Table1[[#This Row],[Flat rate]]="",$B$1*E13*Table1[[#This Row],[Quantity]],Table1[[#This Row],[Flat rate]]*Table1[[#This Row],[Quantity]]) -> 25 | I13: *2 | J13: Y | K13: Y | S13: Office Expenses
C14: Abatement Requests | E14: 1 | F14: period | G14: 1 | H14: =IF(Table1[[#This Row],[Flat rate]]="",$B$1*E14*Table1[[#This Row],[Quantity]],Table1[[#This Row],[Flat rate]]*Table1[[#This Row],[Quantity]]) -> 75 | I14: *3 | L14: Y | S14: Abatement Requests
C15: Installment Agreement Request | E15: 1 | F15: case | G15: 1 | H15: =IF(Table1[[#This Row],[Flat rate]]="",$B$1*E15*Table1[[#This Row],[Quantity]],Table1[[#This Row],[Flat rate]]*Table1[[#This Row],[Quantity]]) -> 75 | S15: Installment Agreement Request
C16: Trust Fund interviews | D16: 50 | F16: individual | G16: 1 | H16: =IF(Table1[[#This Row],[Flat rate]]="",$B$1*E16*Table1[[#This Row],[Quantity]],Table1[[#This Row],[Flat rate]]*Table1[[#This Row],[Quantity]]) -> 50 | K16: Y | S16: Trust Fund interviews
C17: Trust Fund appeal filing | E17: 3 | F17: individual | G17: 1 | H17: =IF(Table1[[#This Row],[Flat rate]]="",$B$1*E17*Table1[[#This Row],[Quantity]],Table1[[#This Row],[Flat rate]]*Table1[[#This Row],[Quantity]]) -> 225 | I17: *4 | K17: Y | S17: Trust Fund appeal filing
C18: Trust Fund appeal hearing | E18: 1.5 | F18: appeal | G18: 1 | H18: =IF(Table1[[#This Row],[Flat rate]]="",$B$1*E18*Table1[[#This Row],[Quantity]],Table1[[#This Row],[Flat rate]]*Table1[[#This Row],[Quantity]]) -> 112.5 | S18: Trust Fund appeal hearing
C19: Offer in Compromise filing | E19: 4 | F19: case | G19: 1 | H19: =IF(Table1[[#This Row],[Flat rate]]="",$B$1*E19*Table1[[#This Row],[Quantity]],Table1[[#This Row],[Flat rate]]*Table1[[#This Row],[Quantity]]) -> 300 | M19: Y | S19: Offer in Compromise filing
C20: Additional time | E20: 1 | F20: hour | G20: 1 | H20: =IF(Table1[[#This Row],[Flat rate]]="",$B$1*E20*Table1[[#This Row],[Quantity]],Table1[[#This Row],[Flat rate]]*Table1[[#This Row],[Quantity]]) -> 75 | S20: Additional time
C21: Payroll processing 1-5 employees | D21: 125 | F21: month | G21: 1 | H21: =IF(Table1[[#This Row],[Flat rate]]="",$B$1*E21*Table1[[#This Row],[Quantity]],Table1[[#This Row],[Flat rate]]*Table1[[#This Row],[Quantity]]) -> 125 | S21: Payroll processing 1-5 employees
C22: Payroll processing 6-10 employees | D22: 155 | F22: month | G22: 1 | H22: =IF(Table1[[#This Row],[Flat rate]]="",$B$1*E22*Table1[[#This Row],[Quantity]],Table1[[#This Row],[Flat rate]]*Table1[[#This Row],[Quantity]]) -> 155 | S22: Payroll processing 6-10 employees
C23: Payroll processing 10-15 employees | D23: 200 | F23: month | G23: 1 | H23: =IF(Table1[[#This Row],[Flat rate]]="",$B$1*E23*Table1[[#This Row],[Quantity]],Table1[[#This Row],[Flat rate]]*Table1[[#This Row],[Quantity]]) -> 200 | S23: Payroll processing 10-15 employees
C24: Phone call | E24: 0.25 | F24: each | G24: 1 | H24: =IF(Table1[[#This Row],[Flat rate]]="",$B$1*E24*Table1[[#This Row],[Quantity]],Table1[[#This Row],[Flat rate]]*Table1[[#This Row],[Quantity]]) -> 18.75 | S24: Phone call
H26: =SUM(Table1[Cost]) -> 2991 | J26: =SUMIF(Table1[Collection Case],"Y",Table1[Cost]) -> 1467.25 | K26: =SUMIF(Table1[Trust Fund],"Y",Table1[Cost]) -> 1236 | L26: =SUMIF(Table1[Abatement per period],"Y",Table1[Cost]) -> 150 | M26: =SUMIF(Table1[OIC],"Y",Table1[Cost]) -> 1575 | N26: =SUMIF(Table1[Appeal],"Y",Table1[Cost]) -> 1162.5
B27: *1 | C27: Most Revenue Officers want a minimum of 3 months' bank statements, with most wanting 6.
B28: *2 | C28: This is a guess. It includes certified mail and mailing of packages, etc. to RO's.
B29: *3 | C29: includes software, subscriptions, etc. necessary to be in compliance with IRS.
B30: *4 | C30: During these interviews, you have to answer the questions. I will prepare you by going through
C31: an interview with you and will be with you on the call to protect your rights.
B32: *5 | C32: We are a small office and focus our attention on clients with less than 15 employees.
J36: Collection Case | K36: Trust Fund | L36: Abatement per period | M36: OIC | N36: Appeal
J38: 1467.25 | K38: 1236 | L38: 150 | M38: 1575 | N38: 1162.5

Sheet Returns
B2: Task | C2: Rate
B3: Sch EIC (Earned income credit) | C3: 25
B4: Sch SE (Self-employment tax) | C4: 20
B5: Sec. 199A analysis (Qualified Business Income analysis) | C5: 25
B6: Sch ES (Quarterly estimated tax calculation) | C6: 60
B7: 1116/1116 AMT (Foreign tax credit) | C7: 150
B8: 2441 (Credit for child and dependent care expenses) | C8: 50
B9: 2555 (Foreign earned income exclusion) | C9: 125
B10: 3115 (Change in accounting method) | C10: 150
B11: 4562 (Depreciation and amortization) | C11: 150
B12: 4797 (Sales of business property) | C12: 150
B13: 5329 (Additional taxes on qualified plans (including IRAs) and other tax-favored accounts) | C13: 75
B14: 5695 (Residential Energy Credits) | C14: 40
B15: 6251 (Alternative minimum tax) | C15: 75
B16: 8283 (Noncash charitable contributions) | C16: 20
B17: 8582 (Passive activity loss) | C17: 75
B18: 8606 (Nondeductible IRAs) | C18: 75
B19: 8615 (Tax for children under age 18 with investment income) | C19: 75
B20: Sch 8812 (Additional child tax credit) | C20: 25
B21: 8814 (Parents’ election to report child’s interest/dividends) | C21: 70
B22: 8829 (Expenses for business use of your home) | C22: 50
B23: 8839 (Qualified adoption expenses) | C23: 50
B24: 8863 (Education credits) | C24: 45
B25: 8889 (Health Savings Accounts (HSAs)) | C25: 45
B26: 8917 (Tuition and fees deduction) | C26: 45
B27: 8938 (Statement of specified foreign financial assets) | C27: 150
B28: 8960 (Net Investment Income Tax) | C28: 50
B29: 8962 (Premium Tax Credit) | C29: 75
B30: 8965 (Health Coverage Exemptions) | C30: 25
B31: 8995 (Qualified Business Income Ded. – Simple Calculation) | C31: 50
B32: 8995-A (Qualified Business Income Deduction) | C32: 75
B33: FBAR (FinCEN 114) (Foreign bank & financial accts (aggregate value > $10k) | C33: 75
B34: 1099-MISC/NEC (Miscellaneous income (issuance to contractors)) | C34: 40
B35: 1040 preparation (simple) | C35: 225
B36: Sch A (Itemized Deductions) | C36: 75
B37: Sch B (Interest & Ordinary Div.) | C37: 25
B38: Sch C (Profit/Loss from Bus.) | C38: 95
B39: Sch D (Capital gains & losses) | C39: 45
B40: Sch E (Suppl. Income/loss(rental)) | C40: 120
B41: 1065 Partnership return prep | C41: 575
B42: 1120-S Corporate return prep | C42: 575
B48: *all rates are subject to change reflecting complexity of the situation and condition of records.
